fUST/lending_fUST_20240511
["ID","MTS","AMOUNT","RATE_DAILY","PERIOD"]
[326793399,1715377852894,-198.22729772,0.00019998,2]
[326793400,1715377852903,-6857.3776203,0.00019999,2]
[326793401,1715377853102,-208.72073891,0.00019999,2]
[326793402,1715377853113,-2086.15678154,0.00019999,2]
[326793403,1715377853122,-1866.41167338,0.00019999,2]
[326793404,1715377853132,-288.04813781,0.00019999,2]
[326793405,1715377853141,-20846.13348298,0.0002,2]
[326793406,1715377853150,-43843.69285967,0.0002,2]
[326793407,1715377853159,-10615.15949594,0.0002,2]
[326793408,1715377853168,-281.0,0.0002,2]
[326793409,1715377853177,-309.01096112,0.0002,2]
[326793410,1715377853187,-80000.0,0.0002,2]
[326793411,1715377853197,-167.91997373,0.0002,2]
[326793412,1715377853206,-400.0,0.0002,2]
[326793413,1715377853215,-172.46302905,0.0002,2]
[326793414,1715377853225,-285.86164233,0.0002,2]
[326793415,1715377853234,-521.50201214,0.0002,2]
[326793416,1715377853243,-380.05955451,0.0002,2]
[326793417,1715377853254,-200.0,0.0002,2]
[326793418,1715377853264,-281.57030574,0.0002,2]
[326793419,1715377853273,-120914.47972149,0.0002,2]
[326793420,1715377853283,-309.42756595,0.0002,2]
[326793421,1715377853291,-151.0,0.0002,2]
[326793422,1715377853300,-52530.95737795,0.0002,2]
[326793423,1715377853310,-7115.6866343,0.0002,2]
[326793424,1715377853319,-4240.8363786,0.0002,2]
[326793425,1715377853328,-53162.35256653,0.0002,2]
[326793426,1715377853338,-151.0,0.0002,2]
[326793427,1715377853347,-151.0,0.0002,2]
[326793428,1715377853357,-151.0,0.0002,2]
[326793429,1715377853366,-151.0,0.0002,2]
[326793430,1715377853375,-906.616638,0.0002,2]
[326793431,1715377853385,-906.616638,0.0002,2]
[326793432,1715377853394,-906.616638,0.0002,2]
[326793433,1715377853403,-906.616638,0.0002,2]
[326793434,1715377853412,-906.616638,0.0002,2]
[326793435,1715377853421,-906.616638,0.0002,2]
[326793436,1715377853430,-906.616638,0.0002,2]
[326793437,1715377853439,-906.616638,0.0002,2]
[326793438,1715377853448,-906.616638,0.0002,2]
[326793439,1715377853457,-906.616638,0.0002,2]
[326793440,1715377853467,-183.225876,0.0002,2]
[326793441,1715377853476,-151.0,0.0002,2]
[326793442,1715377853485,-151.0,0.0002,2]
[326793443,1715377853494,-151.0,0.0002,2]
[326793444,1715377853503,-151.0,0.0002,2]
[326793445,1715377853515,-158.613842,0.0002,2]
[326793446,1715377853524,-158.613842,0.0002,2]
[326793447,1715377853533,-158.613842,0.0002,2]
[326793448,1715377853542,-158.613842,0.0002,2]
[326793449,1715377853551,-158.613842,0.0002,2]
[326793450,1715377853560,-158.613842,0.0002,2]
[326793451,1715377853569,-158.613842,0.0002,2]
[326793452,1715377853578,-158.613842,0.0002,2]
[326793453,1715377853587,-158.613842,0.0002,2]
[326793454,1715377853597,-158.613842,0.0002,2]
[326793455,1715377853606,-158.613842,0.0002,2]
[326793456,1715377853614,-158.613842,0.0002,2]
[326793457,1715377853623,-158.613842,0.0002,2]
[326793458,1715377853632,-158.613842,0.0002,2]
[326793459,1715377853642,-158.613842,0.0002,2]
[326793460,1715377853651,-158.613842,0.0002,2]
[326793461,1715377853660,-158.613842,0.0002,2]
[326793462,1715377853669,-158.613842,0.0002,2]
[326793463,1715377853679,-200.0,0.0002,2]
[326793464,1715377853687,-151.0,0.0002,2]
[326793465,1715377853697,-151.0,0.0002,2]
[326793466,1715377853706,-151.0,0.0002,2]
[326793467,1715377853715,-151.0,0.0002,2]
[326793468,1715377853723,-151.0,0.0002,2]
[326793469,1715377853732,-151.0,0.0002,2]
[326793470,1715377853742,-151.0,0.0002,2]
[326793471,1715377853751,-151.0,0.0002,2]
[326793472,1715377853760,-320.921972,0.0002,2]
[326793473,1715377853769,-320.921972,0.0002,2]
[326793474,1715377853779,-320.921972,0.0002,2]
[326793475,1715377853788,-320.921972,0.0002,2]
[326793476,1715377853798,-240.753817,0.0002,2]
[326793477,1715377853807,-320.921972,0.0002,2]
[326793478,1715377853816,-240.753817,0.0002,2]
[326793479,1715377853826,-320.921972,0.0002,2]
[326793480,1715377853835,-240.753817,0.0002,2]
[326793481,1715377853844,-320.921972,0.0002,2]
[326793482,1715377853853,-240.753817,0.0002,2]
[326793483,1715377853862,-320.921972,0.0002,2]
[326793484,1715377853871,-240.753817,0.0002,2]
[326793485,1715377853881,-320.921972,0.0002,2]
[326793486,1715377853890,-240.753817,0.0002,2]
[326793487,1715377853900,-240.753817,0.0002,2]
[326793488,1715377853909,-320.921972,0.0002,2]
[326793489,1715377853918,-320.921972,0.0002,2]
[326793490,1715377853928,-320.921972,0.0002,2]
[326793491,1715377853937,-240.753817,0.0002,2]
[326793492,1715377853946,-320.921972,0.0002,2]
[326793493,1715377853955,-320.921972,0.0002,2]
[326793494,1715377853964,-320.921972,0.0002,2]
[326793495,1715377853973,-320.921972,0.0002,2]
[326793496,1715377853983,-240.753817,0.0002,2]
[326793497,1715377853993,-320.921972,0.0002,2]
[326793498,1715377854003,-240.753817,0.0002,2]
[326793499,1715377854016,-240.753817,0.0002,2]
[326793500,1715377854025,-320.921972,0.0002,2]
[326793501,1715377854034,-240.753817,0.0002,2]
[326793502,1715377854044,-240.753817,0.0002,2]
[326793503,1715377854054,-240.753817,0.0002,2]
[326793504,1715377854064,-240.753817,0.0002,2]
[326793505,1715377854073,-240.753817,0.0002,2]
[326793506,1715377854082,-151.0,0.0002,2]
[326793507,1715377854093,-151.0,0.0002,2]
[326793508,1715377854102,-151.0,0.0002,2]
[326793509,1715377854111,-151.0,0.0002,2]
[326793510,1715377854120,-272.834512,0.0002,2]
[326793511,1715377854130,-151.0,0.0002,2]
[326793512,1715377854139,-151.0,0.0002,2]
[326793513,1715377854149,-151.0,0.0002,2]
[326793514,1715377854158,-151.0,0.0002,2]
[326793515,1715377854168,-220.018025,0.0002,2]
[326793516,1715377854177,-606.04329,0.0002,2]
[326793517,1715377854187,-606.04329,0.0002,2]
[326793518,1715377854197,-606.04329,0.0002,2]
[326793519,1715377854207,-606.04329,0.0002,2]
[326793520,1715377854217,-606.04329,0.0002,2]
[326793521,1715377854228,-606.04329,0.0002,2]
[326793522,1715377854237,-606.04329,0.0002,2]
[326793523,1715377854247,-606.04329,0.0002,2]
[326793524,1715377854257,-606.04329,0.0002,2]
[326793525,1715377854266,-606.04329,0.0002,2]
[326793526,1715377854275,-606.04329,0.0002,2]
[326793527,1715377854284,-606.04329,0.0002,2]
[326793528,1715377854294,-606.04329,0.0002,2]
[326793529,1715377854303,-606.04329,0.0002,2]
[326793530,1715377854313,-606.04329,0.0002,2]
[326793531,1715377854322,-606.04329,0.0002,2]
[326793532,1715377854331,-151.0,0.0002,2]
[326793533,1715377854341,-151.0,0.0002,2]
[326793534,1715377854350,-151.0,0.0002,2]
[326793535,1715377854359,-2459.811996,0.0002,2]
[326793536,1715377854368,-2459.811996,0.0002,2]
[326793537,1715377854377,-151.0,0.0002,2]
[326793538,1715377854387,-2459.811996,0.0002,2]
[326793539,1715377854396,-151.0,0.0002,2]
[326793540,1715377854405,-2459.811996,0.0002,2]
[326793541,1715377854414,-151.0,0.0002,2]
[326793542,1715377854423,-2459.811996,0.0002,2]
[326793543,1715377854432,-151.0,0.0002,2]
[326793544,1715377854442,-2459.811996,0.0002,2]
[326793545,1715377854451,-151.0,0.0002,2]
[326793546,1715377854460,-1953.15358254,0.0002,2]
[326793547,1715377947632,151.0,0.00039764,30]
[326793551,1715378096646,522.19690124,9.999e-05,2]
[326793552,1715378889487,1042.0,9.999e-05,2]
[326793553,1715378901489,-189.33595798,0.0001579,2]
[326793554,1715378901513,-159.702122,0.0001589,2]
[326793555,1715378901523,-29.63383598,0.00016998,2]
[326793556,1715378901534,-153.32808404,0.00016998,2]
[326793557,1715378932019,-1526.66404202,0.00016998,2]
[326793558,1715378974991,284.55118921,9.999e-05,2]
[326793559,1715378989003,-1970.0,0.00016998,2]
[326793577,1715379032678,-18134.60973162,0.00016998,2]
[326793578,1715379032689,-959.20663359,0.00016998,2]
[326793579,1715379032700,-907.44942013,0.00016998,2]
[326793628,1715379038586,-1219.10825262,0.00016998,2]
[326793629,1715379038596,-942.1730376,0.00017234,2]
[326793630,1715379038606,-387.3542678,0.00017256,2]
[326793631,1715379038615,-894.51331095,0.00018,2]
[326793632,1715379038625,-1001.1062598,0.00018209,2]
[326793633,1715379038634,-606.007588,0.00018222,2]
[326793635,1715379038644,-1285.77045331,0.0001888,2]
[326793636,1715379038653,-2659.76043685,0.000189,2]
[326793638,1715379038662,-217.68420214,0.00018999,2]
[326793640,1715379038671,-176.535382,0.00019178,2]
[326793642,1715379038681,-4581.62626985,0.00019512,2]
[326793643,1715379038690,-172.44154846,0.00019898,2]
[326793644,1715379038700,-172.44154843,0.00019899,2]
[326793645,1715379038709,-172.44154843,0.00019899,2]
[326793646,1715379038719,-172.44154843,0.000199,2]
[326793647,1715379038728,-261.95147932,0.000199,2]
[326793648,1715379038737,-261.95147931,0.000199,2]
[326793649,1715379038747,-261.95147931,0.000199,2]
[326793651,1715379038756,-261.95147931,0.000199,2]
[326793653,1715379038765,-172.44154843,0.000199,2]
[326793654,1715379038773,-288.53731085,0.00019996,2]
[326793655,1715379038782,-157.19307999,0.00019996,2]
[326793656,1715379038791,-1239.70719152,0.00019996,2]
[326793657,1715379038800,-834.20724205,0.00019996,2]
[326793658,1715379038809,-282.60809455,0.00019996,2]
[326793659,1715379038818,-1624.11883803,0.00019996,2]
[326793660,1715379038827,-2011.1578101,0.00019996,2]
[326793718,1715379044143,-482.0131584,0.00019996,2]
[326793720,1715379044155,-5391.0206863,0.00019996,2]
[326793721,1715379044164,-158.20036641,0.00019996,2]
[326793723,1715379044173,-3057.36000381,0.00019997,2]
[326793725,1715379044182,-1882.33843824,0.00019998,2]
[326793727,1715379044192,-273.25764425,0.00019998,2]
[326793729,1715379044201,-330.43257549,0.00019998,2]
[326793730,1715379044210,-538.92800322,0.00019998,2]
[326793732,1715379044219,-6946.84771296,0.00019998,2]
[326793733,1715379044228,-235.8939695,0.00019998,2]
[326793734,1715379044237,-15697.34517274,0.00019998,2]
[326793735,1715379044246,-227.52273626,0.00019998,2]
[326793736,1715379044257,-1347.30375243,0.00019998,2]
[326793737,1715379044266,-183.9475463,0.00019998,2]
[326793738,1715379044275,-1042.0,0.00019998,2]
[326793739,1715379044284,-204.24621004,0.00019999,2]
[326793740,1715379044294,-5210.0,0.00019999,2]
[326793741,1715379044303,-380.05955451,0.0002,2]
[326793742,1715379044312,-262.15305828,0.0002,2]
[326793743,1715379044321,-80000.0,0.0002,2]
[326793744,1715379044330,-245.6801007,0.0002,2]
[326793745,1715379044339,-10615.15949594,0.0002,2]
[326793746,1715379044349,-400.0,0.0002,2]
[326793747,1715379044358,-309.42756595,0.0002,2]
[326793748,1715379044368,-67521.8836984,0.0002,2]
[326793749,1715379044383,-343.0,0.0002,2]
[326793750,1715379044392,-200.0,0.0002,2]
[326793751,1715379044401,-415.86469055,0.000201,2]
[326793752,1715379044412,-415.86469055,0.00020201,2]
[326793753,1715379044421,-391.7146074,0.000203,2]
[326793754,1715379044430,-415.86469055,0.00020302,2]
[326793755,1715379044439,-415.86469055,0.00020404,2]
[326793756,1715379044449,-415.86469055,0.00020505,2]
[326793757,1715379044458,-415.86469055,0.00020606,2]
[326793758,1715379044468,-415.86469055,0.00020707,2]
[326793759,1715379044477,-415.86469055,0.00020808,2]
[326793760,1715379044486,-46218.54497942,0.000209,3]
[326793761,1715379044499,-9336.45502058,0.000209,3]
[326793762,1715379044509,-2000.0,0.000209,2]
[326793763,1715379044518,-641.86376226,0.00020909,2]
[326793764,1715379044527,-355.25334749,0.00020911,2]
[326793765,1715379044536,-154.94365812,0.00020912,4]
[326793766,1715379044546,-1093.78568774,0.00020912,2]
[326793767,1715379044555,-340.79875434,0.00020912,2]
[326793768,1715379044565,-236.92714638,0.00021,2]
[326793769,1715379044574,-10162.86007434,0.00021,2]
[326793802,1715379046468,-714.14784375,0.00021,2]
[326793803,1715379046484,-28715.09029281,0.00021,2]
[326793804,1715379046494,-197.51919484,0.00021,2]
[326793805,1715379046503,-3689.38208324,0.00021,2]
[326793806,1715379046515,-6334.85015544,0.00021,2]
[326793807,1715379046525,-151.0,0.00021,2]
[326793808,1715379046534,-151.0,0.00021,2]
[326793809,1715379046543,-151.0,0.00021,2]
[326793810,1715379046552,-151.0,0.00021,2]
[326793811,1715379046562,-617.251354,0.00021,2]
[326793812,1715379046571,-617.251354,0.00021,2]
[326793813,1715379046580,-151.0,0.00021,2]
[326793814,1715379046590,-151.0,0.00021,2]
[326793815,1715379046599,-151.0,0.00021,2]
[326793816,1715379046608,-1624.210718,0.00021,2]
[326793817,1715379046617,-151.0,0.00021,2]
[326793818,1715379046626,-1187.23641856,0.00021,2]
[326793819,1715379046639,-436.97429944,0.00021,2]
[326793820,1715379046648,-151.0,0.00021,2]
[326793821,1715379046658,-151.0,0.00021,2]
[326793822,1715379046668,-7.80512256,0.00021,2]
[326793825,1715379119119,3509.59012776,9.999e-05,2]
[326793828,1715379219113,1520.52688188,0.00039736,88]
[326793829,1715379226836,522.19690124,9.999e-05,2]
[326793830,1715379253179,689.43337629,0.00015,2]
[326793832,1715379519118,2485.82602891,0.00039713,88]
[326793833,1715379747954,160.0,0.00039713,30]
[326793834,1715379819116,4479.47311712,0.00039725,88]
[326793835,1715379851835,158.22736457,9.999e-05,2]
[326793838,1715380043657,206.84585849,9.999e-05,2]
[326793839,1715380072405,194.1642929,9.999e-05,2]
[326793919,1715380233546,-165.49379907,0.0001579,2]
[326793920,1715380233556,-165.993042,0.0001589,2]
[326793921,1715380233565,-184.72083527,0.0001589,2]
[326793922,1715380233579,-12.53715873,0.0001589,2]
[326793923,1715380233588,-163.950788,0.0001589,2]
[326793924,1715380233597,-165.49379904,0.0001716,2]
[326793925,1715380233607,-932.72201719,0.00017816,2]
[326793926,1715380233618,-783.68359521,0.00017816,2]
[326793927,1715380233627,-894.51331095,0.00018,2]
[326793928,1715380233636,-508.327128,0.00018368,2]
[326793929,1715380233645,-24900.0,0.00018368,2]
[326793930,1715380233655,-165.49379904,0.0001853,2]
[326793931,1715380233663,-191.351971,0.00019178,2]
[326793932,1715380233674,-176.535382,0.00019178,2]
[326793933,1715380233683,-215.55193554,0.000199,2]
[326793934,1715380233693,-165.49379904,0.000199,2]
[326793935,1715380233702,-200.5087506,0.0001995,2]
[326793936,1715380233712,-1026.7620254,0.00019998,2]
[326793937,1715380233721,-5050.36913883,0.00019998,2]
[326793938,1715380233731,-1897.35281506,0.00019998,2]
[326793939,1715380233741,-1205.26694717,0.00019998,2]
[326793940,1715380233750,-242.5393827,0.00019998,2]
[326793941,1715380233763,-236.00965182,0.00019998,2]
[326793942,1715380233773,-204.94636995,0.00019998,2]
[326793943,1715380233782,-193.08432498,0.00019998,2]
[326793944,1715380233792,-891.52667903,0.00019998,2]
[326793945,1715380233803,-2453.40430644,0.00019998,2]
[326793946,1715380233812,-500.0,0.00019999,2]
[326793947,1715380233821,-579.9181323,0.00019999,2]
[326793948,1715380233830,-500.0,0.00019999,2]
[326793949,1715380233841,-340.45679502,0.00019999,2]
[326793950,1715380233850,-380.05955451,0.0002,2]
[326793951,1715380233859,-80000.0,0.0002,2]
[326793952,1715380233868,-30520.02330026,0.0002,2]
[326794035,1715380238605,-2086.53808771,0.0002,2]
[326794036,1715380238617,-34915.32231043,0.0002,2]
[326794037,1715380238626,-200.0,0.0002,2]
[326794038,1715380238636,-3457.70192986,0.00020793,2]
[326794039,1715380238645,-816.97434546,0.00020797,2]
[326794040,1715380238655,-55555.0,0.0002081,3]
[326794041,1715380238664,-303.25948846,0.00020909,2]
[326794042,1715380238673,-470.68505052,0.00020909,2]
[326794043,1715380238684,-28989.66231986,0.0002091,2]
[326794044,1715380238693,-330.43257549,0.0002091,2]
[326794045,1715380238703,-186.38755187,0.0002091,2]
[326794046,1715380238712,-303.67284012,0.0002091,2]
[326794047,1715380238721,-155.44708054,0.0002091,2]
[326794048,1715380238731,-155.27698082,0.0002091,2]
[326794049,1715380238739,-474.21464437,0.0002091,2]
[326794050,1715380238749,-155.09257999,0.0002091,2]
[326794051,1715380238758,-191.38112735,0.0002091,2]
[326794052,1715380238771,-185.81629862,0.0002091,2]
[326794053,1715380238780,-574.45001192,0.0002091,2]
[326794054,1715380238790,-1676.30195278,0.0002091,2]
[326794055,1715380238799,-168.88983771,0.0002091,2]
[326794056,1715380238810,-4584.27268443,0.0002091,2]
[326794057,1715380238819,-15683.13964121,0.00020911,2]
[326794058,1715380238829,-1882.33843824,0.00020911,2]
[326794059,1715380238838,-248.36679693,0.00020912,2]
[326794060,1715380238849,-663.00263243,0.00020912,2]
[326794061,1715380238858,-171.87726234,0.00021,2]
[326794062,1715380238867,-10615.15949594,0.00021,2]
[326794063,1715380238877,-200.09916125,0.00021,2]
[326794064,1715380238886,-2000.0,0.000219,2]
[326794065,1715380238895,-195.534896,0.00021918,2]
[326794066,1715380238904,-166.666668,0.00021918,2]
[326794067,1715380238913,-166.666666,0.00021918,2]
[326794068,1715380238922,-166.666666,0.00021918,2]
[326794069,1715380238933,-7333.3452744,0.00021918,2]
[326794070,1715380238942,-5229.71545665,0.00022,2]
[326794071,1715380238952,-159.4535182,0.00022,2]
[326794072,1715380238961,-3499.72581581,0.00022,2]
[326794073,1715380238973,-1279.72643616,0.00022,2]
[326794074,1715380238984,-6593.55140271,0.00022,2]
[326794075,1715380238996,-5377.87056736,0.00022,2]
[326794076,1715380239005,-497.0,0.00022,2]
[326794077,1715380239014,-497.0,0.00022192,2]
[326794078,1715380239024,-197.257994,0.00022264,2]
[326794079,1715380239033,-154.75239617,0.000223,2]
[326794080,1715380239042,-166.666666,0.00022431,2]
[326794081,1715380239051,-5600.0,0.000225,6]
[326794082,1715380239060,-151.631885,0.000225,2]
[326794083,1715380239069,-460.858319,0.000225,2]
[326794084,1715380239079,-460.858319,0.000225,2]
[326794085,1715380239088,-151.0,0.000225,2]
[326794086,1715380239097,-166.22768,0.000225,2]
[326794087,1715380239106,-151.0,0.000225,2]
[326794088,1715380239126,-151.0,0.000225,2]
[326794089,1715380239137,-555.526219,0.000225,2]
[326794090,1715380239147,-555.526219,0.000225,2]
[326794091,1715380239157,-1461.789646,0.000225,2]
[326794092,1715380239167,-1461.789646,0.000225,2]
[326794093,1715380239177,-151.0,0.000225,2]
[326794094,1715380239187,-151.0,0.000225,2]
[326794095,1715380239196,-151.0,0.000225,2]
[326794096,1715380239206,-151.0,0.000225,2]
[326794097,1715380239216,-166.666666,0.00022944,2]
[326794098,1715380239226,-154.78330338,0.00023,2]
[326794099,1715380239235,-714.97924015,0.00023,2]
[326794100,1715380239246,-497.0,0.00023014,2]
[326794101,1715380239257,-166.666666,0.00023456,2]
[326794102,1715380239267,-159.702122,0.00023963,2]
[326794103,1715380239277,-166.666666,0.00023969,2]
[326794104,1715380239288,-700.41592475,0.00024,2]
[326794105,1715380239298,-501.0,0.00024164,2]
[326794106,1715380239309,-166.666666,0.00024482,2]
[326794107,1715380239319,-380.0,0.00024658,2]
[326794108,1715380239329,-1554.73,0.00024862,2]
[326794109,1715380239339,-400.10978683,0.00025,2]
[326794110,1715380239349,-271.05788261,0.00025,2]
[326794111,1715380239359,-167.10326178,0.00025,2]
[326794112,1715380239369,-309.48934336,0.00025,2]
[326794113,1715380239379,-1838.46657154,0.00025,2]
[326794114,1715380239389,-1017.95418348,0.00025,2]
[326794115,1715380239399,-154.75239617,0.00025,2]
[326794116,1715380239409,-497.0,0.00025775,2]
[326794117,1715380239419,-11136.70488316,0.00026,2]
[326794118,1715380239431,-186.85286601,0.00027,2]
[326794119,1715380239441,-150.0,0.00027259,2]
[326794120,1715380239451,-497.0,0.00027386,2]
[326794121,1715380239460,-500.0,0.00027397,2]
[326794122,1715380239470,-313.21984602,0.00027397,2]
[326794123,1715380239480,-1000.0,0.00027397,2]
[326794124,1715380239490,-1000.0,0.00027397,2]
[326794125,1715380239501,-1096.8135771,0.00027397,2]
[326794126,1715380239511,-197.91563516,0.000274,2]
[326794127,1715380239521,-17848.54629658,0.000275,2]
[326794166,1715380242942,-469.5,0.000275,2]
[326794172,1715380242954,-3211.09373542,0.000275,2]
[326794175,1715380242966,-9732.05428548,0.000275,2]
[326794178,1715380242978,-11202.77893182,0.000275,2]
[326794198,1715380243133,-402.65461014,0.000275,2]
[326794203,1715380243145,-496.45347403,0.000275,2]
[326794207,1715380243154,-151.0,0.000275,2]
[326794211,1715380243164,-460.858319,0.000275,2]
[326794214,1715380243174,-153.3474584,0.000275,2]
[326794218,1715380243187,-277.79394753,0.000275,2]
[326794221,1715380243198,-29.71691307,0.000275,2]
[326794224,1715380243207,-151.0,0.000275,2]
[326794227,1715380243216,-151.0,0.000275,2]
[326794230,1715380243226,-151.0,0.000275,2]
[326794233,1715380243235,-555.526219,0.000275,2]
[326794235,1715380243245,-555.526219,0.000275,2]
[326794237,1715380243254,-1461.789646,0.000275,2]
[326794239,1715380243264,-1461.789646,0.000275,2]
[326794241,1715380243274,-151.0,0.000275,2]
[326794242,1715380243283,-151.0,0.000275,2]
[326794243,1715380243293,-151.0,0.000275,2]
[326794244,1715380243302,-151.0,0.000275,2]
[326794245,1715380243312,-508.327128,0.00027552,2]
[326794247,1715380243321,-497.0,0.00027616,2]
[326794249,1715380243331,-222.84206869,0.00028,2]
[326794251,1715380243340,-221.20105551,0.00028,2]
[326794253,1715380243350,-197.257994,0.00028637,2]
[326794255,1715380243359,-3820.57,0.0002876,3]
[326794257,1715380243368,-32754.16521659,0.0002877,2]
[326794684,1715380648936,151.0,0.00039727,30]
[326794742,1715381433591,-167.555949,0.0001589,2]
[326794744,1715381433600,-159.702122,0.0001589,2]
[326794746,1715381433609,-1644.1941893,0.00018911,2]
[326794849,1715381438795,-15609.35183676,0.00018911,2]
[326794886,1715381443175,-359.50100004,0.00018911,2]
[326794911,1715381443682,-2517.32088638,0.00018911,2]
[326794918,1715381444512,-4769.63208752,0.00018911,2]
[326794920,1715381444521,-261.95147931,0.000199,2]
[326794922,1715381444531,-261.95147931,0.000199,2]
[326794923,1715381444540,-261.95147931,0.000199,2]
[326794925,1715381444550,-261.95147931,0.000199,2]
[326794927,1715381444560,-261.95147931,0.000199,2]
[326794928,1715381444569,-186.41151215,0.00019998,2]
[326794929,1715381444578,-3589.12040323,0.00019998,2]
[326794930,1715381444587,-4770.58934559,0.00019998,2]
[326794931,1715381444597,-178.25288196,0.00019998,2]
[326794932,1715381444606,-382.86007487,0.00019998,2]
[326794933,1715381444615,-513.70090513,0.00019998,2]
[326794946,1715381448573,-13.12315541,0.00019998,2]
[326794947,1715381448583,-414.17922478,0.00019998,2]
[326794948,1715381448592,-382.85606144,0.00019998,2]
[326794949,1715381448602,-1578.7542886,0.00019998,2]
[326794950,1715381448611,-1623.44024738,0.00019998,2]
[326794951,1715381448620,-2628.5218352,0.00019998,2]
[326794952,1715381448630,-718.1352498,0.00019998,2]
[326794953,1715381448640,-214.50938592,0.00019998,2]
[326794954,1715381448651,-500.0,0.00019999,2]
[326794955,1715381448662,-275.23837051,0.00019999,2]
[326794956,1715381448670,-500.0,0.00019999,2]
[326794957,1715381448680,-500.0,0.00019999,2]
[326794958,1715381448691,-300.0,0.00019999,2]
[326794959,1715381448700,-209.08301576,0.00019999,2]
[326794960,1715381448709,-327.46741126,0.00019999,2]
[326794961,1715381448718,-393.86687664,0.00019999,2]
[326794962,1715381448727,-500.0,0.00019999,2]
[326794963,1715381448736,-500.0,0.00019999,2]
[326794964,1715381448746,-500.0,0.00019999,2]
[326794965,1715381448755,-500.0,0.00019999,2]
[326794966,1715381448764,-500.0,0.00019999,2]
[326794967,1715381448773,-500.0,0.00019999,2]
[326794968,1715381448782,-500.0,0.00019999,2]
[326794969,1715381448791,-500.0,0.00019999,2]
[326794970,1715381448802,-500.0,0.00019999,2]
[326794971,1715381448812,-500.0,0.00019999,2]
[326794972,1715381448822,-500.0,0.00019999,2]
[326794973,1715381448833,-500.0,0.00019999,2]
[326794974,1715381448842,-285.73190513,0.00019999,2]
[326794975,1715381448851,-500.0,0.00019999,2]
[326794976,1715381448861,-500.0,0.00019999,2]
[326794977,1715381448870,-500.0,0.00019999,2]
[326794978,1715381448879,-500.0,0.00019999,2]
[326794979,1715381448888,-500.0,0.00019999,2]
[326794980,1715381448897,-500.0,0.00019999,2]
[326794981,1715381448906,-500.0,0.00019999,2]
[326794982,1715381448916,-500.0,0.00019999,2]
[326794983,1715381448925,-500.0,0.00019999,2]
[326794984,1715381448935,-500.0,0.00019999,2]
[326794985,1715381448945,-67521.8836984,0.0002,2]
[326794986,1715381448955,-380.05955451,0.0002,2]
[326794987,1715381448964,-80000.0,0.0002,2]
[326794988,1715381449125,-54818.3968906,0.00020909,2]
[326794989,1715381449134,-161.1878028,0.0002091,2]
[326794990,1715381449145,-330.43257549,0.00020911,2]
[326794991,1715381449155,-155.06299619,0.00020912,2]
[326794992,1715381449169,-418.689601,0.00020913,2]
[326794993,1715381449179,-1805.2557733,0.00020913,2]
[326794994,1715381449189,-195.534896,0.00021918,2]
[326794995,1715381449199,-166.666666,0.00021918,2]
[326794996,1715381449209,-5229.71545665,0.00022,2]
[326794997,1715381449219,-159.4535182,0.00022,2]
[326794998,1715381449228,-820.42908644,0.00022,2]
[326794999,1715381449237,-166.666666,0.00022431,2]
[326795000,1715381449248,-166.666666,0.00022944,2]
[326795001,1715381449258,-154.82968734,0.00023,2]
[326795002,1715381449267,-714.97924015,0.00023,2]
[326795003,1715381449276,-166.666666,0.00023456,2]
[326795004,1715381449285,-166.666666,0.00023969,2]
[326795005,1715381449294,-166.666666,0.00024482,2]